bitfinex-derivatives/quotes_ETHF0:USTF0_20250410
["timestamp","ask_amount","ask_price","bid_price","bid_amount"]
[1744320237564,3.35132652,1521.2,1521.1,9.24793119]
[1744320237771,3.35132652,1521.2,1521.1,6.92585119]
[1744320237772,8.35132652,1521.2,1521.1,6.92585119]
[1744320238164,3.35132652,1521.2,1521.1,4.08840119]
[1744320238365,8.35132652,1521.2,1521.1,1.22823119]
[1744320238566,1.3156,1521.1,1521.0,2.09e-06]
[1744320238766,6.70161652,1521.1,1521.0,2.09e-06]
[1744320238967,11.70161652,1521.1,1521.0,2.09e-06]
[1744320240873,1.31568,1521.0,1520.9,17.31291006]
[1744320241073,6.19829652,1521.0,1520.9,14.42924006]
[1744320241274,11.19829652,1521.0,1520.9,12.17132006]
[1744320241476,11.19829652,1521.0,1520.9,7.19476006]
[1744320241669,11.19757235,1521.0,1520.9,4.52481006]
[1744320241871,11.19757235,1521.0,1520.9,6e-08]
[1744320242880,1.31577,1520.9,1520.8,23.86384424]
[1744320243177,6.68626235,1520.9,1520.8,23.86384424]
[1744320243396,11.68626235,1520.9,1520.8,23.86384424]
[1744320245174,6.68626235,1520.9,1520.8,23.86384424]
[1744320245483,6.68626235,1520.9,1520.8,0.0098409]
[1744320246480,6.68488575,1520.9,1520.8,0.0098409]
[1744320247487,6.68488575,1520.9,1520.8,9e-07]
[1744320249875,3.54991575,1520.9,1520.8,6.3158609]
[1744320250075,4.86568575,1520.9,1520.8,6.3158609]
[1744320250282,11.18254138,1521.0,1520.9,1.31577]
[1744320250584,11.18254138,1521.0,1520.9,3.18747]
[1744320250782,10.20627957,1521.1,1521.0,1.31568]
[1744320250980,10.20627957,1521.1,1521.0,7.80868]
[1744320251174,10.20627957,1521.1,1521.0,12.80868]
[1744320252586,11.52187957,1521.1,1521.0,12.80868]
[1744320252786,10.20627957,1521.1,1521.0,12.80868]
[1744320254470,13.41407957,1521.1,1521.0,12.80868]
[1744320255692,3.2176409,1521.1,1521.0,12.80868]
[1744320256388,0.0098409,1521.1,1521.0,12.80868]
[1744320256791,3.2078,1521.3,1521.2,1.31551]
[1744320257287,3.2078,1521.3,1521.2,6.31551]
[1744320257489,8.28478372,1521.5,1521.4,1.31534]
[1744320257686,8.62719345,1521.5,1521.4,6.02634]
[1744320257886,8.62719345,1521.5,1521.4,11.02634]
[1744320259685,8.62729005,1521.5,1521.4,11.02634]
[1744320259886,8.62729005,1521.5,1521.4,12.90804]
[1744320260185,8.62729005,1521.5,1521.4,14.48534]
[1744320261190,8.62729005,1521.5,1521.4,9.48534]
[1744320262686,8.62765384,1521.5,1521.4,9.48534]
[1744320263082,4.86592012,1521.5,1521.4,9.48534]
[1744320263283,6.58902012,1521.5,1521.4,9.48534]
[1744320264885,5.27377012,1521.5,1521.4,9.48534]
[1744320265394,5.27372906,1521.5,1521.4,9.48534]
[1744320266392,5.27369343,1521.5,1521.4,9.48534]
[1744320266795,2.06589343,1521.5,1521.4,9.48534]
[1744320267092,5.27371,1521.5,1521.4,9.48534]
[1744320267294,6.58896,1521.5,1521.4,2.89264]
[1744320268494,5.27371,1521.5,1521.4,2.89264]
[1744320268703,6.58896,1521.5,1521.4,4.65304]
[1744320270296,5.27371,1521.5,1521.4,4.65304]
[1744320270693,5.27357297,1521.5,1521.4,4.65304]
[1744320270897,6.58882297,1521.5,1521.4,4.65304]
[1744320271603,6.58882297,1521.5,1521.4,2.89264]
[1744320272498,3.38102297,1521.5,1521.4,2.89264]
[1744320272698,6.58882297,1521.5,1521.4,2.89264]
[1744320272993,5.27357297,1521.5,1521.4,2.89264]
[1744320276408,6.58882297,1521.5,1521.4,2.89264]
[1744320276602,6.58882297,1521.5,1521.4,1.31534]
[1744320276805,8.31722297,1521.5,1521.4,1.31534]
[1744320278003,8.31817293,1521.5,1521.4,1.31534]
[1744320279913,10.04207293,1521.5,1521.4,1.31534]
[1744320283507,10.04355028,1521.5,1521.4,1.31534]
[1744320284806,15.120534,1521.5,1521.4,1.31534]
[1744320285201,11.912734,1521.5,1521.4,1.31534]
[1744320285509,15.120534,1521.5,1521.4,1.31534]
[1744320285809,11.912734,1521.5,1521.4,1.31534]
[1744320286001,15.120534,1521.5,1521.4,1.31534]
[1744320288515,13.805284,1521.5,1521.4,1.31534]
[1744320288712,10.352984,1521.5,1521.4,1.31534]
[1744320288915,10.352984,1521.5,1521.4,8.32994]
[1744320290115,5.422084,1521.5,1521.4,14.32194]
[1744320290815,5.42269684,1521.5,1521.4,14.32194]
[1744320292523,0.34571312,1521.5,1521.4,14.32194]
[1744320292820,3.12e-06,1521.5,1521.4,14.32194]
[1744320293017,0.0098409,1521.6,1521.5,1.31525]
[1744320293219,0.0098409,1521.6,1521.5,9.51245]
[1744320293523,0.0098409,1521.6,1521.5,14.51245]
[1744320294922,0.0098409,1521.6,1521.5,20.50445]
[1744320295826,9e-07,1521.6,1521.5,20.50445]
[1744320296015,9e-07,1521.6,1521.5,23.71225]
[1744320299126,9e-07,1521.6,1521.5,32.09744382]
[1744320300323,3.46023462,1521.7,1521.6,1.31516]
[1744320300519,10.19643867,1522.0,1521.9,1.3149]
[1744320300719,10.19643867,1522.0,1521.9,12.0139]
[1744320301225,8.69e-06,1522.0,1521.9,20.2217]
[1744320301420,8.69e-06,1522.0,1521.9,22.228]
[1744320301822,9.59e-06,1522.1,1522.0,1.31482]
[1744320302026,9.59e-06,1522.1,1522.0,3.32112]
[1744320302327,8.81715793,1522.2,1522.1,1.31473]
[1744320302523,8.81715793,1522.2,1522.1,6.12123]
[1744320302917,8.81715793,1522.2,1522.1,7.83023]
[1744320303114,10.78035793,1522.3,1522.2,1.31464]
[1744320303327,10.78035793,1522.3,1522.2,6.02164]
[1744320304021,12.09491793,1522.3,1522.2,6.02164]
[1744320304225,15.78035793,1522.3,1521.8,0.0098409]
[1744320304432,4.52265,1522.0,1521.9,4.706]
[1744320305029,9.85399937,1522.0,1521.9,4.706]
[1744320305526,11.81999937,1522.0,1521.9,4.706]
[1744320307030,9.85399937,1522.0,1521.9,4.706]
[1744320307230,9.85400432,1522.0,1521.9,4.706]
[1744320307731,10.84012484,1522.0,1521.9,6.0209]
[1744320307928,10.84012484,1522.0,1521.9,4.706]
[1744320310727,10.84012484,1522.0,1521.8,0.0098409]
[1744320310728,1.3149,1521.9,1521.8,0.0098409]
[1744320311033,1.64625432,1521.9,1521.8,4.7158409]
[1744320311233,1.64625432,1521.9,1521.8,6.0308309]
[1744320311634,1.64625432,1521.9,1521.8,4.7158409]
[1744320312037,1.64652669,1521.9,1521.8,4.7158409]
[1744320313835,1.64669125,1521.9,1521.8,4.7158409]
[1744320314737,4.85449125,1521.9,1521.8,4.7158409]
[1744320316533,4.85449125,1521.9,1521.4,6.01928]
[1744320316534,1.31529,1521.5,1521.4,6.01928]
[1744320316834,1.64708125,1521.5,1521.4,4.704]
[1744320317138,1.64725772,1521.5,1521.4,4.704]
[1744320320241,2.63337824,1521.5,1521.4,4.704]
[1744320320443,2.63323055,1521.5,1521.4,4.704]
[1744320321241,1.31534,1521.4,1521.3,0.0098409]
[1744320321443,4.85496003,1521.4,1521.3,0.0098409]
[1744320321831,1.31568,1521.0,1520.9,100.226]
[1744320322034,4.85530003,1521.0,1520.9,104.93]
[1744320322351,3.28965,1520.8,1520.3,115.7070578]
[1744320322530,1.3162,1520.4,1520.3,120.4110578]
[1744320322735,1.64802003,1520.4,1520.3,120.4110578]
[1744320322936,1.64802003,1520.4,1520.3,20.1680578]
[1744320324048,1.31629,1520.3,1520.2,15.4738987]
[1744320324244,4.85591003,1520.3,1520.2,15.4738987]
[1744320324749,9.85591003,1520.3,1520.2,15.4738987]
[1744320326444,9.85265798,1520.3,1520.2,15.4738987]
[1744320328444,9.85208234,1520.3,1520.2,15.4738987]
[1744320330150,9.85208234,1520.3,1520.2,0.0098409]
[1744320330348,9.52409,1520.3,1520.2,0.0098409]
[1744320330546,4.52409,1520.3,1520.2,0.0098409]
[1744320330951,4.52409,1520.3,1520.2,1.3262109]
[1744320331147,3.2078,1520.3,1520.2,1.3262109]
[1744320332856,4.52409,1520.3,1520.2,1.3262109]
[1744320333454,3.2078,1520.3,1520.2,1.3262109]
[1744320335557,1.31622,1520.4,1520.3,1.31629]
[1744320335756,1.31622,1520.4,1520.3,6.02429]
[1744320336557,4.5338309,1520.5,1520.4,1.3162]
[1744320338164,3.2176409,1520.5,1520.4,1.3162]
[1744320340663,4.5337509,1520.5,1520.4,1.3162]
[1744320340864,3.2176409,1520.5,1520.4,1.3162]
[1744320341861,0.0098409,1520.5,1520.4,6.3162]
[1744320346371,0.0098409,1520.5,1520.4,1.3162]
[1744320349268,0.0098409,1520.5,1520.4,4.6028]
[1744320349466,1.9155409,1520.5,1520.4,4.6028]
[1744320349871,1.9155409,1520.5,1520.4,6.6267]
[1744320353876,1.9155409,1520.5,1520.3,10.7]
[1744320354177,4.93328292,1520.4,1520.3,12.01625]
[1744320354565,6.92878292,1520.4,1520.3,12.01625]
[1744320355782,5.61258292,1520.4,1520.3,12.01625]
[1744320355982,2.32678292,1520.4,1520.3,12.01625]
[1744320356182,2.32678292,1520.4,1520.3,13.75565]
[1744320356383,3.95658292,1520.4,1520.3,12.01625]
[1744320358988,2.32678292,1520.4,1520.3,12.01625]
[1744320359486,2.32678292,1520.4,1520.3,7.70955]
[1744320360785,2.32678292,1520.4,1520.3,11.22865]
[1744320362485,2.32797058,1520.4,1520.3,11.22865]
[1744320364295,2.32797058,1520.4,1520.3,9.35185]
[1744320367991,2.32806095,1520.4,1520.3,9.35185]
[1744320368787,2.32806095,1520.4,1520.3,11.35145]
[1744320369796,2.32809266,1520.4,1520.3,11.35145]
[1744320372588,0.33259266,1520.4,1520.3,11.35145]
[1744320372892,9e-07,1520.5,1520.4,1.3162]
[1744320373090,7.45552578,1520.6,1520.4,5.235]
[1744320373286,7.45552578,1520.6,1520.5,1.31611]
[1744320373485,7.45552578,1520.6,1520.5,5.02491]
[1744320375096,2.0292409,1520.7,1520.6,1.31603]
[1744320375294,2.0292409,1520.7,1520.6,9.61163]
[1744320381902,3.3451809,1520.7,1520.6,6.01703]
[1744320382089,7.0292409,1520.7,1520.2,10.31609533]
[1744320382400,1.31625,1520.4,1520.3,1.31627]
[1744320382895,3.19875,1520.4,1520.3,1.31627]
[1744320383499,1.8825,1520.4,1520.3,1.31627]
[1744320388006,2.86962004,1520.4,1520.3,1.31627]
[1744320390003,4.18582004,1520.4,1520.3,1.31627]
[1744320391995,2.86962004,1520.4,1520.3,1.31627]
[1744320392505,6.07742004,1520.4,1520.3,1.31627]
[1744320395912,7.79812004,1520.4,1520.3,1.31627]
[1744320397408,4.59032004,1520.4,1520.3,1.31627]
[1744320397612,7.79812004,1520.4,1520.3,1.31627]
[1744320402421,4.59032004,1520.4,1520.3,1.31627]
[1744320402621,7.79812004,1520.4,1520.3,1.31627]
[1744320403419,4.59032004,1520.4,1520.3,1.31627]
[1744320403620,7.79812004,1520.4,1520.3,1.31627]
[1744320406022,1.31629,1520.3,1520.2,0.0098409]
[1744320406213,5.08619,1520.3,1520.2,0.0098409]
[1744320406416,10.08619,1520.3,1520.2,0.0098409]
[1744320408725,5.08619,1520.3,1520.2,0.0098409]
[1744320409226,8.29399,1520.3,1520.2,0.0098409]
[1744320409524,1.31645,1520.2,1520.0,1.31648]
[1744320409726,3.2078,1520.1,1520.0,1.31648]
[1744320409922,6.33566,1520.1,1520.0,1.31648]
[1744320410217,8.35016,1520.1,1520.0,1.31648]
[1744320411328,5.2223,1520.1,1520.0,3.15428]
[1744320413026,6.53876,1520.1,1520.0,3.15428]
[1744320413327,6.53876,1520.1,1520.0,1.31648]
[1744320415626,7.52588004,1520.1,1520.0,1.31648]
[1744320416529,6.20942004,1520.1,1520.0,1.31648]
[1744320417838,7.52588004,1520.1,1520.0,1.31648]
[1744320421143,6.20942004,1520.1,1520.0,1.31648]
[1744320421332,7.52588004,1520.1,1520.0,1.31648]
[1744320423443,11.32691837,1520.1,1520.0,1.31648]
[1744320423660,11.32691837,1520.1,1520.0,3.12658]
[1744320424343,6.10461837,1520.1,1520.0,11.95588]
[1744320425043,2.78738656,1520.1,1520.0,118.29788]
[1744320425243,6.56e-06,1520.1,1520.0,118.29788]
[1744320427743,5.2569,1520.5,1520.4,1.3162]
[1744320427944,5.2569,1520.5,1520.4,6.0142]
[1744320430147,5.2569,1520.5,1520.4,8.1209]
[1744320433451,2.0491,1520.5,1520.4,8.1209]
[1744320443248,2.0491,1520.5,1520.4,6.0142]
[1744320443454,10.07731,1520.5,1520.4,6.0142]
[1744320444662,5.07731,1520.5,1520.4,6.0142]
[1744320445262,3.7612,1520.5,1520.4,6.0142]
[1744320445974,12.428545,1520.5,1520.4,6.0142]
[1744320447963,15.636345,1520.5,1520.4,6.0142]
[1744320449565,10.716445,1520.5,1520.4,6.0142]
[1744320449756,10.716445,1520.5,1520.4,7.9764]
[1744320450157,8.667345,1520.5,1520.4,7.9764]
[1744320450462,8.667345,1520.5,1520.4,12.9764]
[1744320451554,6.800435,1520.5,1520.4,18.9684]
[1744320451760,2.363665,1520.5,1520.4,18.9684]
[1744320451967,5e-06,1520.5,1520.4,27.37682019]
[1744320452767,14.52600506,1520.8,1520.7,1.31594]
[1744320452965,14.52600506,1520.8,1520.7,6.00794]
[1744320453359,2.025,1520.8,1520.7,8.05094]
[1744320453666,10.23419934,1521.0,1520.9,1.31577]
[1744320454254,10.23419934,1521.0,1520.9,6.81357]
[1744320454568,8.70396934,1521.0,1520.9,17.80557]
[1744320454767,6.25156934,1521.0,1520.9,17.80557]
[1744320454963,1.64411934,1521.0,1520.9,18.3088844]
[1744320455163,0.0098409,1521.1,1521.0,1.31568]
[1744320455164,9e-07,1521.1,1521.0,1.31568]
[1744320455376,9e-07,1521.1,1521.0,11.25848]
[1744320455565,9.31573596,1521.2,1521.1,1.3156]
[1744320455861,2.72481596,1521.2,1521.1,22.92377369]
[1744320456261,0.40677596,1521.2,1521.1,22.92377369]
[1744320456568,17.26647377,1521.5,1521.4,1.31534]
[1744320456764,17.26647377,1521.5,1521.4,6.00734]
[1744320456968,15.19827377,1521.5,1521.4,6.00734]
[1744320457170,15.19827377,1521.5,1521.4,8.11934]
[1744320457670,13.65729377,1521.5,1521.4,108.40534]
[1744320457866,12.26386377,1521.5,1521.4,113.40534]
[1744320458067,9.45348377,1521.5,1521.4,114.06294]
[1744320458266,16.04322227,1521.6,1521.5,1.31525]
[1744320458467,12.64098288,1521.6,1521.5,12.62705]
[1744320458765,18.71800442,1521.8,1521.7,1.31508]
[1744320458962,15.17500442,1521.8,1521.7,9.21388]
[1744320459167,2.1374,1522.2,1522.1,1.31473]
[1744320459368,2.1374,1522.2,1522.1,6.00573]
[1744320459870,0.00645322,1522.3,1522.2,1.31464]
[1744320460073,0.00645322,1522.3,1522.2,3.44244]
[1744320460869,0.00645322,1522.3,1522.2,9.43444]
[1744320461267,3.22e-06,1522.3,1522.2,9.43444]
[1744320461474,3.22e-06,1522.3,1522.2,14.43444]
[1744320462072,3.22e-06,1522.3,1522.2,14.91638394]
[1744320462272,2.0957,1522.6,1522.5,1.31439]
[1744320462572,18.38280442,1522.7,1522.6,1.3143]
[1744320462772,15.17500442,1522.7,1522.6,9.9046]
[1744320463267,2.0744,1522.9,1522.8,1.31413]
[1744320463467,2.0744,1522.9,1522.8,6.00213]
[1744320464694,2.0744,1522.9,1522.8,106.23513]
[1744320469078,2.0744,1522.9,1522.8,108.37183]
[1744320470078,2.0744,1522.9,1522.8,106.23513]
[1744320470281,8.38844,1522.9,1522.8,104.921]
[1744320470781,7.0744,1522.9,1522.8,104.921]
[1744320471075,8.38844,1522.9,1522.8,104.921]
[1744320471778,8.38844,1522.9,1522.8,100.233]
[1744320471973,8.38844,1522.9,1522.8,104.914]
[1744320472172,8.38844,1522.9,1522.8,104.913]
[1744320472880,3.38844,1522.9,1522.8,104.913]
[1744320477782,8.38844,1522.9,1522.8,104.913]
[1744320477982,8.38844,1522.9,1522.8,4.68]
[1744320478784,1.31447,1522.4,1522.3,7.30652]
[1744320478975,4.52226,1522.5,1522.3,11.98652]
[1744320479177,1.8419,1522.4,1522.3,11.98652]
[1744320479382,3.9471,1522.4,1522.3,11.98652]
[1744320479981,5.26157,1522.4,1522.3,11.98652]
[1744320480582,5.26157,1522.4,1522.3,10.672]
[1744320480883,5.26157,1522.4,1522.3,11.98656]
[1744320481384,5.26157,1522.4,1522.3,10.672]
[1744320482486,5.26157,1522.4,1522.3,4.68]
[1744320483185,6.96627,1522.4,1522.3,4.68]
[1744320483382,5.6518,1522.4,1522.3,5.99456]
[1744320483786,6.96627,1522.4,1522.3,4.68]
[1744320485187,6.96627,1522.4,1522.3,5.99456]
[1744320485791,6.96627,1522.4,1522.3,4.68]
[1744320486085,5.6518,1522.4,1522.3,5.99456]
[1744320486491,2.1052,1522.4,1522.3,8.00176]
[1744320486686,6.8026,1522.7,1522.3,8.00176]
[1744320486893,2.0857,1522.6,1522.5,1.31433]
[1744320487191,2.0857,1522.6,1522.5,5.99433]
[1744320487895,2.0857,1522.6,1522.5,8.06893]
[1744320488592,2.0857,1522.6,1522.5,14.06093]
[1744320496005,6.20592,1522.9,1522.7,1.31414]
[1744320496304,2.1503,1522.8,1522.7,1.31414]
[1744320496494,2.1503,1522.8,1522.7,5.98914]
[1744320497722,5.3581,1522.8,1522.7,5.98914]
[1744320497904,11.67223,1522.8,1522.7,4.675]
[1744320498305,6.67223,1522.8,1522.7,4.675]
[1744320498907,6.67223,1522.8,1522.7,5.98921]
[1744320499904,6.67223,1522.8,1522.7,4.675]
[1744320500514,6.67223,1522.8,1522.7,5.98921]
[1744320503708,6.67223,1522.8,1522.7,4.675]
[1744320508706,6.67223,1522.8,1522.7,5.98921]
[1744320509207,6.67223,1522.8,1522.7,4.675]
[1744320511105,11.67223,1522.8,1522.7,4.675]
[1744320511410,6.67223,1522.8,1522.7,4.675]
[1744320517617,7.65793229,1522.8,1522.7,4.675]
[1744320518813,3.28554,1522.7,1522.4,1.31443]
[1744320519112,8.112,1522.6,1522.5,5.98939]
[1744320519408,10.1509,1522.6,1522.5,5.98939]
[1744320520314,10.1509,1522.6,1522.5,4.675]
[1744320523206,10.1509,1522.6,1522.5,5.98939]
[1744320523612,6.9431,1522.6,1522.5,5.98939]
[1744320523815,10.1509,1522.6,1522.5,5.98939]
[1744320525315,10.1509,1522.6,1522.5,9.54419]
[1744320526318,6.9431,1522.6,1522.5,9.54419]
[1744320526613,10.1509,1522.6,1522.5,9.54419]
[1744320529520,6.9431,1522.6,1522.5,9.54419]
[1744320529715,10.1509,1522.6,1522.5,9.54419]
[1744320530221,10.1509,1522.6,1522.5,8.2298]
[1744320531119,10.1509,1522.6,1522.5,9.54419]
[1744320533015,6.561,1522.6,1522.5,9.54419]
[1744320533320,3.3532,1522.6,1522.5,9.54419]
[1744320533520,6.561,1522.6,1522.5,9.54419]
[1744320534523,3.3532,1522.6,1522.5,9.54419]
[1744320534714,6.561,1522.6,1522.5,9.54419]
[1744320536726,6.561,1522.6,1522.5,8.2298]
[1744320536920,6.561,1522.6,1522.5,4.675]
[1744320540319,6.561,1522.6,1522.5,5.98939]
[1744320540519,3.2078,1522.6,1522.5,5.98939]
[1744320542731,11.88537873,1522.6,1522.5,5.98939]
[1744320543629,13.19967873,1522.6,1522.5,5.98939]
[1744320543927,11.88537873,1522.6,1522.5,5.98939]
[1744320544725,8.67757873,1522.6,1522.5,5.98939]
[1744320545327,8.67757873,1522.6,1522.5,10.98939]
[1744320547834,10.39166138,1522.8,1522.7,1.31421]
[1744320548631,10.39166138,1522.8,1522.7,3.36481]
[1744320552745,5.2637,1522.8,1522.7,3.36481]
[1744320553038,3.2078,1522.8,1522.7,3.36481]
[1744320553740,5.3403,1522.8,1522.7,3.36481]
[1744320558257,3.2078,1522.8,1522.7,9.35681]
[1744320558554,7.26026138,1523.0,1522.9,1.31404]
[1744320558756,7.26026138,1523.0,1522.9,5.97704]
[1744320559245,7.26026138,1523.0,1522.9,9.33614]
[1744320560152,5.12796138,1523.0,1522.9,9.33614]
[1744320560554,5.12796138,1523.0,1522.9,120.48714]
[1744320560941,1.65590138,1523.1,1523.0,1.31395]
[1744320561247,1.65590138,1523.1,1523.0,6.59095]
[1744320561446,1.65590138,1523.1,1523.0,11.59095]
[1744320564551,1.65590138,1523.1,1523.0,17.58295]
[1744320567661,1.65590138,1523.1,1523.0,12.58295]
[1744320567964,1.9871,1523.3,1523.2,1.31378]
[1744320568260,1.9871,1523.3,1523.2,5.97478]
[1744320568652,1.9871,1523.3,1523.2,7.73928]
[1744320569155,1.9871,1523.3,1523.2,9.56668]
[1744320570561,1.9871,1523.3,1523.2,10.07822203]
[1744320572864,1.9871,1523.3,1523.2,16.07022203]
[1744320573463,1.9871,1523.3,1523.2,19.27802203]
[1744320573848,1.9871,1523.3,1523.2,16.07022203]
[1744320574755,1.9871,1523.3,1523.2,16.72702203]
[1744320574951,1.9871,1523.3,1523.2,16.07022203]
[1744320575156,1.9871,1523.3,1523.2,16.72702203]
[1744320575862,1.9871,1523.3,1523.2,16.07022203]
[1744320576263,1.9871,1523.3,1523.2,18.04112203]
[1744320578066,1.9871,1523.3,1523.2,21.24892203]
[1744320580873,1.9871,1523.3,1523.2,19.27802203]
[1744320582076,1.9871,1523.3,1523.2,12.47832203]
[1744320583571,1.9871,1523.3,1523.2,7.81732203]
[1744320583766,6.9871,1523.3,1523.2,7.30578]
[1744320583966,6.9871,1523.3,1523.2,11.96678]
[1744320585174,1.9871,1523.3,1523.2,11.96678]
[1744320585369,6.9871,1523.3,1523.2,11.96678]
[1744320585767,1.9871,1523.3,1523.2,11.96678]
[1744320586276,6.9871,1523.3,1523.2,11.96678]
[1744320586663,8.3008,1523.3,1523.2,11.96678]
[1744320587167,6.9871,1523.3,1523.2,11.96678]
[1744320588078,6.9871,1523.3,1523.2,5.97478]
[1744320588373,1.9871,1523.3,1523.2,5.97478]
[1744320588976,3.3008,1523.3,1523.2,5.97478]
[1744320590478,1.9871,1523.3,1523.2,5.97478]
[1744320590667,3.3008,1523.3,1523.2,5.97478]
[1744320591275,3.2078,1523.7,1523.6,1.31344]
[1744320591579,7.69182095,1523.8,1523.6,1.31344]
[1744320591580,4.92216507,1523.8,1523.7,1.31335]
[1744320594678,10.42396507,1523.8,1523.7,1.31335]
[1744320595581,10.42396507,1523.8,1523.7,1.33745575]
[1744320596885,5.5018,1523.8,1523.7,1.33745575]
[1744320598286,3.8219,1523.8,1523.7,1.33745575]
[1744320598484,3.8219,1523.8,1523.7,3.16495575]
[1744320598878,1.9981,1523.8,1523.7,3.16495575]
[1744320599078,3.6581,1524.0,1523.9,1.31318]
[1744320599284,3.6581,1524.0,1523.9,5.96718]
[1744320599684,3.6581,1524.0,1523.9,5.99128575]
[1744320602284,2.173,1524.1,1524.0,1.31309]
[1744320602683,2.173,1524.1,1524.0,1.33719575]
[1744320602886,3.6864,1524.4,1524.3,1.31283]
[1744320603183,2.0506,1524.4,1524.3,5.96583]
[1744320603386,2.0506,1524.4,1524.3,9.17363]
[1744320603582,2.0506,1524.4,1524.3,11.01593]
[1744320603787,2.0506,1524.4,1524.3,13.19423575]
[1744320604396,10.08074756,1524.5,1524.4,1.31275]
[1744320604688,10.08074756,1524.5,1524.4,3.49105575]
[1744320605387,6.50424756,1524.5,1524.4,23.60890074]
[1744320605680,2.55463756,1524.5,1524.4,23.60890074]
[1744320605887,13.05649379,1524.9,1524.8,1.3124]
[1744320606089,1.82957983,1524.9,1524.8,15.1652]
[1744320606287,1.82957983,1524.9,1524.8,20.1652]
[1744320606686,1.82957983,1524.9,1524.8,23.89170575]
[1744320606885,0.49825983,1524.9,1524.8,23.89170575]
[1744320607078,12.78676134,1525.2,1524.9,3.2808]
[1744320607278,12.78596134,1525.2,1525.1,1.31215]
[1744320607483,12.78596134,1525.2,1525.1,5.96315]
[1744320607890,12.78596134,1525.2,1525.1,5.98725575]
[1744320608384,12.78596134,1525.2,1525.1,16.97925575]
[1744320608591,12.78596134,1525.2,1525.1,25.5107931]
[1744320609191,12.78596134,1525.2,1525.1,20.5107931]
[1744320609386,12.78596134,1525.2,1525.1,11.97925575]
[1744320611696,12.78596134,1525.2,1525.1,14.21515575]
[1744320612894,12.78596134,1525.2,1525.1,14.87115575]
[1744320613288,12.78596134,1525.2,1525.1,14.21515575]
[1744320613683,2.1027,1525.4,1525.3,1.31197]
[1744320613889,2.1027,1525.4,1525.3,1.33607575]
[1744320615491,2.1027,1525.4,1525.3,0.02410575]
[1744320615997,2.1027,1525.4,1525.3,1.33607575]
[1744320616699,4.51947,1525.7,1525.5,1.31179]
[1744320616891,2.19999425,1525.6,1525.5,1.31179]
[1744320617092,2.19999425,1525.6,1525.5,5.96079]
[1744320620202,2.19999425,1525.6,1525.5,8.08839]
[1744320620701,2.19999425,1525.6,1525.5,5.96079]
[1744320621500,3.96889425,1525.6,1525.5,4.649]
[1744320622306,5.28060425,1525.6,1525.5,4.649]
[1744320623206,3.96889425,1525.6,1525.5,4.649]
[1744320623407,8.96889425,1525.6,1525.2,1.9116]
[1744320623603,1.31189,1525.4,1525.3,4.643]
[1744320623905,1.31197,1525.3,1525.1,7.30408]
[1744320624102,3.6711,1525.2,1525.1,7.30408]
[1744320624302,3.6711,1525.2,1525.1,11.94708]
[1744320625408,4.98316,1525.2,1525.1,11.94708]
[1744320626107,3.6711,1525.2,1525.1,11.94708]
[1744320627009,4.98316,1525.2,1525.1,11.94708]
[1744320627209,4.98316,1525.2,1525.1,10.635]
[1744320627409,4.98316,1525.2,1525.1,5.992]
[1744320627611,4.98316,1525.2,1525.1,11.94715]
[1744320627813,4.98316,1525.2,1525.1,10.635]
[1744320629013,4.98316,1525.2,1525.1,4.643]
[1744320629417,1.31215,1525.1,1525.0,101.37823]
[1744320629816,1.31215,1525.1,1525.0,106.02123]
[1744320630217,1.31215,1525.1,1525.0,101.37823]
[1744320630817,1.31215,1525.1,1525.0,106.02123]
[1744320632013,1.31211,1525.2,1525.1,1.31215]
[1744320632214,1.31215,1525.1,1525.0,106.02117]
[1744320635117,1.31215,1525.1,1525.0,104.709]
[1744320635818,1.31215,1525.1,1525.0,106.02123]
[1744320643326,1.31215,1525.1,1525.0,104.709]
[1744320643529,1.31215,1525.1,1525.0,106.02123]
[1744320647934,2.0365,1525.2,1525.0,106.02123]
[1744320648130,1.31215,1525.1,1525.0,106.02123]
[1744320650038,3.34861,1525.2,1525.1,1.31215]
[1744320651739,1.31186,1525.5,1525.1,1.31215]
[1744320651934,3.2078,1525.4,1525.3,1.3119]
[1744320652137,6.72218,1525.5,1525.4,1.31189]
[1744320652329,5.4103,1525.5,1525.4,1.31189]
[1744320652534,2.2025,1525.5,1525.4,1.31189]
[1744320652734,5.4103,1525.5,1525.4,3.51589]
[1744320652934,2.2025,1525.5,1525.4,3.51589]
[1744320653138,1.3117,1525.7,1525.4,2.204]
[1744320653438,3.5142,1525.7,1525.5,7.06833]
[1744320653633,3.5142,1525.7,1525.6,4.639]
[1744320653835,2.2025,1525.7,1525.6,5.95071]
[1744320654034,2.2025,1525.7,1525.6,6.843]
[1744320654233,2.2025,1525.7,1525.6,8.15471]
[1744320655038,9.89975087,1525.7,1525.6,8.15471]
[1744320655640,7.69725087,1525.7,1525.6,8.15471]
[1744320658540,9.89005087,1525.7,1525.6,8.15471]
[1744320660143,2.1928,1525.7,1525.6,8.15471]
[1744320663651,6.28092,1526.0,1525.6,6.843]
[1744320663944,2.0755,1525.9,1525.8,1.31152]
[1744320664247,2.0755,1525.9,1525.8,5.94952]
[1744320664443,2.0755,1525.9,1525.8,9.47892]
[1744320666245,1.31165,1525.7,1525.5,1.3216009]
[1744320666443,2.0755,1525.6,1525.5,1.3216009]
[1744320666643,2.0755,1525.6,1525.5,0.0098409]
[1744320666836,2.0755,1525.6,1525.5,1.3216409]
[1744320667035,2.0755,1525.6,1525.5,0.0098409]
[1744320667235,2.0755,1525.6,1525.5,1.3216409]
[1744320667443,2.0755,1525.6,1525.5,0.0098409]
[1744320667639,2.0755,1525.6,1525.5,1.3216409]
[1744320667844,2.0755,1525.6,1525.5,0.0098409]
[1744320668642,3.38721,1525.6,1525.5,0.0098409]
[1744320671047,3.38721,1525.6,1525.5,1.3216409]
[1744320671346,2.0755,1525.6,1525.5,1.3216409]
[1744320671746,3.38721,1525.6,1525.5,0.0098409]
[1744320672448,2.0755,1525.6,1525.5,1.3216409]